bitfinex/quotes_ETHUSD_20241023
["timestamp","ask_amount","ask_price","bid_price","bid_amount"]
[1729672878598,3.48086,2585.6,2585.1,0.8225]
[1729672878907,0.605563,2585.6,2585.1,0.8225]
[1729672879855,0.605563,2585.6,2585.1,4.30398]
[1729672880180,0.605563,2585.6,2585.1,0.8225]
[1729672880396,3.48098,2585.5,2585.1,0.8225]
[1729672880695,0.605563,2585.6,2585.1,0.8225]
[1729672880895,0.7958,2586.4,2585.2,0.55]
[1729672881066,3.48052,2585.9,2585.2,4.03126]
[1729672881268,0.91267658,2586.3,2585.3,0.07735272]
[1729672881269,0.35102945,2585.8,2585.3,0.07735272]
[1729672881484,3.48021,2586.1,2585.4,3.48099]
[1729672881797,0.3515922,2586.0,2585.5,3.48094]
[1729672882003,0.3515922,2585.9,2585.4,3.55834116]
[1729672882170,3.47992,2586.3,2585.4,3.48099]
[1729672882372,3.47992,2586.3,2585.6,3.48073]
[1729672882709,0.35216966,2586.2,2585.6,3.48072]
[1729672883017,0.60539428,2586.6,2585.8,0.771]
[1729672883018,0.35216966,2586.1,2585.8,0.771]
[1729672883199,0.91660903,2586.0,2585.8,0.771]
[1729672883502,0.35216966,2585.9,2585.8,0.771]
[1729672883726,0.35216966,2585.9,2585.8,1.321]
[1729672884006,4.06661943,2586.5,2585.8,5.25522991]
[1729672884218,4.06661943,2586.5,2585.8,4.80154]
[1729672884219,3.47987,2586.3,2585.8,4.80154]
[1729672884378,0.9178902,2586.2,2585.8,4.80154]
[1729672884597,0.9178902,2586.1,2585.9,3.48041]
[1729672884896,0.9178902,2586.0,2585.6,0.55]
[1729672885064,0.9178902,2585.9,2585.6,4.0308]
[1729672885261,3.48024,2586.1,2585.6,4.0308]
[1729672885262,0.9178902,2585.8,2585.6,4.0308]
[1729672885461,0.35303469,2585.7,2585.6,4.0308]
[1729672886087,0.9183375,2585.7,2585.6,4.0308]
[1729672886293,0.91907817,2585.7,2585.6,4.0308]
[1729672886872,0.3534916,2585.7,2585.6,4.0308]
[1729672887072,0.3534916,2585.7,2585.6,5.01432069]
[1729672887281,0.91944899,2585.7,2585.6,5.01432069]
[1729672887513,0.3534916,2585.7,2585.6,4.0308]
[1729672887864,0.56596568,2586.0,2585.7,3.48058]
[1729672888094,0.919967,2585.9,2585.8,3.48054]
[1729672888669,0.919967,2585.9,2585.8,4.03054]
[1729672888869,0.35372908,2585.9,2585.8,7.03054]
[1729672889409,0.35372908,2585.9,2585.8,8.1599968]
[1729672889565,0.35372908,2585.9,2585.8,8.082661]
[1729672889767,0.58915268,2586.5,2585.9,0.7986]
[1729672890107,3.47937,2586.7,2585.9,0.7986]
[1729672890108,0.92111448,2586.4,2586.2,3.47992]
[1729672890317,0.3542883,2586.3,2586.2,3.47992]
[1729672890472,0.92114958,2586.3,2586.2,3.47992]
[1729672890803,0.3542883,2586.3,2586.2,7.81098619]
[1729672891040,0.3542883,2586.3,2586.2,12.72580667]
[1729672891336,0.5904805,2587.0,2586.9,4.85026]
[1729672891495,0.60530095,2587.2,2587.1,3.47879]
[1729672891693,0.60530095,2587.2,2586.9,4.30018]
[1729672891694,0.92207565,2587.2,2586.9,4.30018]
[1729672891919,0.5904805,2587.5,2587.1,3.47879]
[1729672892124,0.92210331,2587.4,2587.3,3.47844]
[1729672892639,0.92210331,2587.4,2587.3,7.94541425]
[1729672892796,0.5904805,2588.2,2587.5,0.01]
[1729672893002,0.5904805,2588.5,2588.2,3.4773]
[1729672893242,0.5674549,2588.4,2588.2,3.4773]
[1729672893540,0.56657501,2588.3,2588.2,3.4773]
[1729672893702,4.0667523,2588.8,2588.1,9.28919979]
[1729672894041,0.56655626,2588.7,2588.1,9.28919979]
[1729672894223,3.47657,2588.8,2588.1,9.28919979]
[1729672894538,3.47657,2588.8,2588.1,5.81174979]
[1729672894539,3.47679,2588.6,2588.1,5.81174979]
[1729672895148,0.43934442,2589.1,2587.8,1.49315551]
[1729672895149,3.47695,2588.5,2587.8,1.49315551]
[1729672895453,3.47695,2588.5,2587.8,4.97097551]
[1729672895609,0.60479473,2588.4,2587.9,3.47771]
[1729672895814,0.60479473,2588.4,2588.0,3.47758]
[1729672896015,0.60479473,2588.4,2588.1,4.99214979]
[1729672896305,3.48524,2589.8,2588.3,3.47718]
[1729672896306,3.47611,2589.1,2588.3,3.47718]
[1729672896551,3.48524,2589.8,2588.2,3.55]
[1729672896552,3.47659,2588.8,2588.4,0.7995]
[1729672896753,3.47659,2588.8,2587.8,1.50315551]
[1729672896754,3.47712,2588.4,2587.8,1.49315551]
[1729672896938,3.47712,2588.4,2587.9,3.47768]
[1729672897313,3.47654,2588.8,2588.2,3.0]
[1729672897549,3.4768,2588.6,2588.3,0.7995]
[1729672898251,3.47654,2588.8,2588.3,0.7995]
[1729672898423,3.47654,2588.8,2588.4,4.47209741]
[1729672899855,3.47665,2588.7,2588.4,4.47209741]
[1729672900042,3.47654,2588.8,2588.4,4.47209741]
[1729672900243,6.95318,2588.8,2588.4,4.47209741]
[1729672900612,3.47654,2588.8,2588.4,4.47209741]
[1729672901229,0.7791,2589.2,2588.3,0.7995]
[1729672901418,6.95248,2589.0,2588.1,4.47209741]
[1729672901624,3.47682,2588.6,2588.1,4.47209741]
[1729672902018,3.47663,2588.8,2588.1,4.47209741]
[1729672902229,3.4769,2588.6,2588.1,4.47209741]
[1729672902533,3.4769,2588.6,2588.1,7.94954741]
[1729672902769,3.4778,2587.9,2587.2,0.8252]
[1729672903067,3.0,2588.7,2587.4,4.47209741]
[1729672903068,3.47753,2588.1,2587.4,4.47209741]
[1729672903377,3.47753,2588.1,2587.6,3.4781]
[1729672903747,3.47725,2588.3,2587.6,3.47802]
[1729672904059,0.7691,2588.6,2587.4,7.95043741]
[1729672904060,3.47758,2588.1,2587.4,7.95038741]
[1729672904219,3.47758,2588.1,2587.4,3.47829]
[1729672904419,3.47777,2587.9,2587.0,4.47209741]
[1729672904639,3.47777,2587.9,2587.4,4.27186]
[1729672904845,4.24971,2588.1,2587.6,4.47209741]
[1729672904846,3.47751,2588.1,2587.6,4.47209741]
[1729672905139,3.47751,2588.1,2587.6,3.4781]
[1729672905341,3.47751,2588.1,2587.6,3.47804]
[1729672905545,3.47726,2588.3,2587.7,3.47798]
[1729672905758,0.7722,2588.5,2587.2,0.01]
[1729672905964,3.47787,2587.8,2587.2,3.47856]
[1729672906119,3.47787,2587.8,2587.2,4.29166]
[1729672906824,6.95581,2587.8,2587.2,4.29166]
[1729672907163,3.47787,2587.8,2587.2,4.29166]
[1729672907382,6.47685,2588.6,2587.6,3.47811]
[1729672907527,3.47725,2588.3,2587.7,0.55]
[1729672907722,3.47752,2588.1,2587.7,0.55]
[1729672907949,3.47752,2588.1,2587.4,3.47832]
[1729672908260,3.47752,2588.1,2587.5,4.02823]
[1729672908566,3.47752,2588.1,2587.6,3.47809]
[1729672910055,3.47752,2588.1,2587.6,6.95613]
[1729672910350,3.4772,2588.3,2587.8,3.47783]
[1729672910551,4.26392,2588.7,2588.1,4.47209741]
[1729672910849,3.47662,2588.8,2588.3,3.47711]
[1729672911052,3.47644,2588.9,2588.2,0.55]
[1729672911053,3.47665,2588.7,2588.2,4.0273]
[1729672911894,3.47644,2588.9,2588.3,3.47705]
[1729672912097,3.47644,2588.9,2588.2,0.55]
[1729672912266,3.47664,2588.7,2588.2,4.02731]
[1729672912466,3.4768,2588.6,2588.1,7.94946741]
[1729672912652,3.4768,2588.6,2588.0,3.0]
[1729672912653,3.47691,2588.5,2588.0,6.47752]
[1729672913557,3.47664,2588.7,2588.1,3.47744]
[1729672913751,3.47664,2588.7,2588.1,7.94946741]
[1729672913996,0.8137,2589.1,2588.1,5.56704415]
[1729672913997,3.47624,2589.0,2588.1,5.56704415]
[1729672914295,3.47686,2588.6,2588.1,4.47209741]
[1729672914497,3.47639,2588.9,2588.3,4.29691]
[1729672914793,3.47656,2588.8,2588.3,4.29691]
[1729672914991,3.47639,2588.9,2588.3,0.8198]
[1729672915177,3.47651,2588.8,2588.3,0.8198]
[1729672915388,3.47651,2588.8,2588.3,4.29697]
[1729672915758,3.47675,2588.7,2588.3,0.8198]
[1729672916089,0.8137,2589.1,2588.4,7.94907741]
[1729672916090,3.4764,2588.9,2588.4,7.94907741]
[1729672917080,3.47611,2589.1,2588.7,4.47209741]
[1729672917293,3.47593,2589.3,2589.0,4.47209741]
[1729672917497,0.35526058,2589.2,2589.0,4.47209741]
[1729672917769,3.47567,2589.5,2589.0,4.47209741]
[1729672917969,3.47571,2589.4,2588.9,4.25077]
[1729672918169,3.83114802,2589.3,2588.6,3.4767]
[1729672918391,3.47632,2589.0,2588.6,3.7744]
[1729672918779,3.47632,2589.0,2588.6,0.7744]
[1729672919118,3.47611,2589.1,2588.3,0.7744]
[1729672919269,0.7779,2589.2,2588.3,0.7744]
[1729672919270,3.47666,2588.7,2588.3,0.7744]
[1729672919808,0.35596559,2588.6,2588.3,4.25158]
[1729672920011,3.47639,2588.9,2588.3,4.25158]
[1729672920170,0.3559661,2588.8,2588.3,7.72868]
[1729672920366,0.3559661,2588.7,2588.3,4.2515]
[1729672920608,0.3559661,2588.6,2588.4,3.47703]
[1729672920811,0.3559661,2588.5,2588.4,3.47703]
[1729672921110,0.35642732,2588.5,2588.4,3.47703]
[1729672922225,0.35642732,2588.5,2588.0,4.25529]
[1729672922226,3.83341732,2588.5,2588.0,4.25529]
[1729672922378,0.35642732,2588.4,2588.0,4.25529]
[1729672922693,0.35642732,2588.3,2588.0,0.7778]
[1729672922904,0.35642732,2588.2,2588.1,3.47745]
[1729672923997,0.35642732,2588.2,2588.0,5.24989741]
[1729672924196,3.83451011,2588.1,2587.7,0.8222]
[1729672924403,0.35699011,2588.0,2587.7,0.8222]
[1729672924572,3.83477011,2587.9,2587.5,1.49305488]
[1729672924910,0.35699011,2587.8,2587.5,1.49305488]
[1729672925113,0.35699011,2587.7,2587.5,1.49305488]
[1729672925318,0.35699011,2587.6,2587.5,1.49305488]
[1729672925772,0.35699011,2587.6,2587.5,3.55554538]
[1729672926224,0.35699011,2587.6,2587.5,4.26386354]
[1729672926373,3.47718,2588.3,2587.7,3.47798]
[1729672926707,0.35682262,2588.2,2587.7,3.47798]
[1729672926911,0.35682262,2588.1,2587.7,6.95585]
[1729672927110,0.35682262,2588.0,2587.8,0.6272783]
[1729672927411,0.35682262,2587.9,2587.8,0.55]
[1729672927621,0.35682262,2587.9,2587.6,3.47812]
[1729672927801,0.35682262,2587.8,2587.6,4.02812]
[1729672927998,0.35682262,2587.7,2587.6,4.02812]
[1729672928199,0.35682262,2587.7,2587.6,0.55]
[1729672928496,0.35682262,2587.7,2587.5,3.47818]
[1729672928701,3.47774,2587.9,2587.4,0.8222]
[1729672928871,0.35674638,2587.8,2587.4,0.8222]
[1729672929078,0.35674638,2587.7,2587.4,0.8222]
[1729672929273,0.35674638,2587.6,2587.4,0.8222]
[1729672929517,0.35674638,2587.5,2587.4,0.8222]
[1729672929673,0.35674638,2587.5,2587.1,4.27083]
[1729672930022,3.47806,2587.7,2587.2,3.55587549]
[1729672930203,3.47806,2587.7,2587.1,4.27083]
[1729672930204,0.35669226,2587.6,2587.1,4.27083]
[1729672930521,0.35669226,2587.5,2587.1,7.74953]
[1729672930672,3.47806,2587.7,2587.2,3.47853]
[1729672930879,0.35660086,2587.6,2587.4,5.02209741]
[1729672931174,6.95505,2588.1,2587.5,6.47826]
[1729672931175,3.47758,2588.0,2587.5,6.47826]
[1729672931388,0.35661074,2587.9,2587.5,6.47826]
[1729672931577,0.35661074,2587.8,2587.5,6.47826]
[1729672931772,0.35661074,2587.7,2587.5,6.47826]
[1729672932009,3.47758,2588.0,2587.5,6.47826]
[1729672932223,0.356602,2587.9,2587.5,6.47826]
[1729672932426,0.356602,2587.8,2587.7,0.55]
[1729672932726,0.356602,2587.8,2587.2,3.79766688]
[1729672932727,3.47806,2587.7,2587.2,3.79766688]
[1729672932927,3.47806,2587.7,2587.1,5.48259422]
[1729672932928,3.8347275,2587.6,2587.1,1.58976688]
[1729672933231,3.47814,2587.6,2587.1,0.7921]
[1729672933387,3.47828,2587.5,2587.1,0.7921]
[1729672933925,3.4784,2587.4,2586.9,3.47906]
[1729672934385,3.47869,2587.2,2586.8,0.7716]
[1729672935736,3.47869,2587.2,2586.8,0.55]
[1729672936113,3.4789,2587.1,2586.6,4.27710688]
[1729672936514,4.27109,2587.2,2586.7,3.47931]
[1729672936740,3.47843,2587.4,2586.7,0.07731459]
[1729672936900,3.47843,2587.4,2586.8,3.47911]
[1729672937095,6.95691,2587.4,2586.9,3.47906]
[1729672937508,3.47854,2587.3,2586.9,3.47906]
[1729672938006,3.47868,2587.2,2586.8,0.55]
[1729672938332,3.47868,2587.2,2586.7,4.02924]
[1729672938641,3.47868,2587.2,2586.5,9.50366429]
[1729672938932,3.47868,2587.2,2586.6,3.47935]
[1729672939466,3.47839,2587.4,2586.7,0.55]
[1729672939597,3.47839,2587.4,2586.9,3.47896]
[1729672940548,0.7943,2587.5,2587.0,3.47882]
[1729672940687,3.47799,2587.7,2587.1,0.7779]
[1729672940890,3.47799,2587.7,2587.2,3.47863]
[1729672941112,3.4778,2587.9,2587.4,3.47832]
[1729672941354,3.47788,2587.8,2587.3,3.55581745]
[1729672941538,3.47767,2588.0,2587.5,3.47821]
[1729672941740,4.28114,2588.1,2587.5,3.47821]
[1729672942047,3.47759,2588.0,2587.5,3.47821]
[1729672942410,3.47773,2587.9,2587.4,3.47831]
[1729672943691,3.47707,2588.4,2587.7,3.47791]
[1729672943692,3.47742,2588.2,2587.7,3.47791]
[1729672944919,3.4778,2587.9,2587.2,7.70627365]
[1729672945195,3.4778,2587.9,2587.4,3.0]
[1729672945196,6.95561,2587.9,2587.4,3.0]
[1729672945801,3.4778,2587.9,2587.3,4.02844]
[1729672946091,3.47787,2587.8,2587.3,0.55]
[1729672946291,3.4778,2587.9,2587.3,0.55]
[1729672946292,3.47799,2587.7,2587.3,0.55]
[1729672946656,0.7526,2587.8,2587.2,0.7943]
[1729672946859,3.47787,2587.8,2587.3,3.47844]
[1729672947157,3.47787,2587.8,2587.3,3.55573256]
[1729672947361,3.47781,2587.9,2587.3,3.55573256]
[1729672947582,3.47799,2587.7,2587.3,3.47844]
[1729672947785,3.47794,2587.8,2587.3,3.47843]
[1729672949096,7.7077,2588.1,2587.4,4.10555257]
[1729672949401,3.47767,2588.0,2587.5,3.47818]
[1729672949890,3.47755,2588.1,2587.6,3.4781]
[1729672950309,3.47755,2588.1,2587.4,0.55]
[1729672950610,3.47793,2587.8,2587.3,4.0285]
[1729672950954,3.47805,2587.7,2587.2,4.27288]
[1729672951199,3.47805,2587.7,2586.9,3.0]
[1729672951200,3.47826,2587.5,2586.9,3.47901]
[1729672951441,3.47846,2587.4,2586.9,4.23071]
[1729672952015,3.47846,2587.4,2586.9,4.81166469]
[1729672952643,3.47846,2587.4,2587.0,3.47892]
[1729672952801,3.47813,2587.6,2587.1,0.55]
[1729672953298,3.47768,2588.0,2587.3,3.4785]
[1729672953699,3.47768,2588.0,2587.4,3.55560317]
[1729672953700,3.47773,2587.9,2587.4,3.55560317]
[1729672953903,3.47773,2587.9,2587.5,0.8141]
[1729672954745,3.47814,2587.6,2587.2,3.8077]
[1729672954952,3.47851,2587.4,2586.8,0.7794]
[1729672955240,3.4789,2587.1,2586.8,0.7794]
[1729672955445,6.95777,2587.1,2586.8,0.7794]
[1729672955603,3.47866,2587.2,2586.8,0.7794]
[1729672956525,3.47826,2587.5,2586.5,2.21801484]
[1729672956855,3.47941,2586.7,2586.1,3.48006]
[1729672957157,3.47941,2586.7,2585.8,0.80766688]
[1729672957158,3.48008,2586.2,2585.8,0.7902]
[1729672957314,3.48022,2586.1,2585.8,0.7902]
[1729672957496,3.48022,2586.1,2585.5,9.28338688]
[1729672957701,4.27326,2586.4,2585.8,3.48054]
[1729672958250,3.47995,2586.3,2585.8,3.48054]
[1729672958452,4.27326,2586.4,2585.7,3.4806]
[1729672958657,7.75313,2586.4,2585.8,3.48053]
[1729672958812,7.75313,2586.4,2585.6,7.95278741]
[1729672958813,4.27326,2586.4,2585.6,7.95278741]
[1729672959014,3.47928,2586.8,2586.2,3.4799]
[1729672959252,3.47927,2586.8,2586.1,4.03006]
[1729672959423,3.47899,2587.0,2586.4,3.47972]
[1729672959759,3.47907,2586.9,2586.5,0.7677]
[1729672960128,3.47899,2587.0,2586.5,0.7677]
[1729672960566,6.958,2587.0,2586.5,0.7677]
[1729672960878,3.47851,2587.4,2586.8,3.47916]
[1729672961014,4.26986,2587.8,2587.0,4.29792]
[1729672961015,4.26995,2587.8,2587.0,4.29792]
[1729672961211,4.26995,2587.8,2587.1,3.47873]
[1729672961465,3.47812,2587.6,2587.1,0.55]
[1729672961953,3.47833,2587.5,2587.0,0.8191]
[1729672962656,3.47833,2587.5,2587.0,4.298]
[1729672964460,3.47812,2587.6,2587.0,0.8191]
[1729672964665,3.47812,2587.6,2587.1,3.47877]
[1729672964958,4.26993,2587.8,2587.1,3.47877]
[1729672965153,4.26993,2587.8,2587.2,3.47864]
[1729672965327,4.26993,2587.8,2587.1,3.47877]
[1729672965535,3.47807,2587.7,2587.1,3.47871]
[1729672965878,3.75,2588.1,2587.4,3.4783]
[1729672965879,3.47763,2588.0,2587.4,3.4783]
[1729672966019,3.4775,2588.1,2587.5,4.30308]
[1729672966277,3.4774,2588.2,2587.6,3.47811]
[1729672966475,3.4776,2588.0,2587.5,4.30315]
[1729672967379,3.4774,2588.2,2587.6,3.47812]
[1729672967617,3.4774,2588.2,2587.7,3.47798]
[1729672967830,3.47713,2588.4,2587.8,3.47778]
[1729672967977,3.47713,2588.4,2587.8,6.95555]
[1729672968176,3.47713,2588.4,2587.8,3.47777]
[1729672968613,6.95428,2588.4,2587.8,3.47777]
[1729672968914,6.95425,2588.4,2587.8,4.2511631]
[1729672969078,0.7525,2588.7,2587.6,4.256161]
[1729672969079,3.47691,2588.5,2587.6,4.256161]
[1729672969280,3.47766,2588.0,2587.5,0.8249]
[1729672970310,3.47691,2588.5,2587.5,0.8249]
[1729672970519,3.4778,2587.9,2587.5,0.8249]
[1729672970887,3.47641,2588.9,2587.6,5.02209741]
[1729672971095,3.47712,2588.4,2587.8,3.47777]
[1729672971321,3.47712,2588.4,2587.8,6.95553]
[1729672971488,3.47712,2588.4,2587.9,3.47772]
[1729672971802,3.47678,2588.6,2588.1,3.47743]
[1729672971997,3.47678,2588.6,2588.0,3.47757]
[1729672972185,3.47707,2588.4,2587.9,0.773678]
[1729672972382,3.47678,2588.6,2588.0,3.47752]
[1729672972584,3.47667,2588.7,2588.0,3.5547946]
[1729672972837,6.4766,2588.8,2588.2,0.55]
[1729672972838,3.4766,2588.8,2588.2,0.55]
[1729672972987,3.47639,2588.9,2588.3,3.47705]
[1729672973189,3.47618,2589.1,2588.4,3.47702]
[1729672973423,3.47649,2588.9,2588.4,3.47702]
[1729672973659,3.47646,2588.9,2588.3,4.02716]
[1729672973827,3.4766,2588.8,2588.3,0.87260874]
[1729672973987,3.4766,2588.8,2588.2,6.95452]
[1729672974504,3.4766,2588.8,2588.2,3.47723]
[1729672974930,3.47646,2588.9,2588.2,3.47723]
[1729672975103,3.47666,2588.7,2588.2,0.55]
[1729672975426,3.47666,2588.7,2588.2,5.19874673]
[1729672975587,3.47666,2588.7,2588.2,8.67598673]
[1729672975784,3.47666,2588.7,2588.2,8.67592673]
[1729672976429,3.47666,2588.7,2588.2,5.19868673]
[1729672976595,3.47666,2588.7,2588.3,0.59753867]
[1729672977136,3.47686,2588.6,2588.2,1.17144673]
[1729672977532,3.47666,2588.7,2588.2,1.17144673]
[1729672977845,3.47666,2588.7,2588.2,8.12604673]
[1729672978145,3.47666,2588.7,2588.2,8.12598673]
[1729672978330,3.47666,2588.7,2588.3,0.89026867]
[1729672978531,3.47666,2588.7,2588.2,3.47724]
[1729672978840,3.47679,2588.6,2588.1,0.7767]
[1729672979042,3.47693,2588.5,2588.1,0.7767]
[1729672980210,3.47672,2588.7,2588.1,0.7767]
[1729672980410,3.47681,2588.6,2588.1,4.25408]
[1729672980611,3.47692,2588.5,2588.1,0.7767]
[1729672980841,3.47707,2588.4,2587.9,3.47761]
[1729672981011,3.47717,2588.4,2587.9,0.55]
[1729672981348,3.47705,2588.4,2587.9,4.02772]
[1729672981643,3.47705,2588.4,2587.9,0.55]
[1729672981962,3.47725,2588.3,2587.9,0.55]
[1729672982242,3.47793,2587.8,2587.1,0.7669]
[1729672982454,3.47809,2587.7,2587.1,4.24569]
[1729672982634,3.47824,2587.6,2587.2,0.424569]
[1729672983144,3.4784,2587.4,2587.1,0.7669]
[1729672983347,3.47824,2587.6,2587.1,0.7669]
[1729672983536,3.47834,2587.5,2587.1,0.7669]
[1729672983845,3.47747,2588.1,2587.1,0.7669]
[1729672983846,3.0,2588.4,2587.1,5.23899741]
[1729672984053,3.47759,2588.0,2587.4,4.02829]
[1729672984207,3.47759,2588.0,2587.5,3.47825]
[1729672984407,3.47758,2588.1,2587.6,3.47806]
[1729672984629,3.47727,2588.3,2587.8,3.47778]
[1729672985066,4.28797,2588.5,2587.8,3.47778]
[1729672985067,3.47705,2588.4,2587.8,3.47778]
[1729672985338,3.47721,2588.3,2587.8,3.47778]
[1729672985651,7.76499,2588.5,2587.8,3.47777]
[1729672985854,3.47706,2588.4,2587.9,3.47768]
[1729672986049,3.47706,2588.4,2587.8,3.91473505]
[1729672986251,3.47706,2588.4,2587.8,7.46977555]
[1729672986455,3.47706,2588.4,2587.9,3.47772]
[1729672987048,3.47697,2588.5,2587.9,4.02763]
[1729672987269,3.47705,2588.4,2587.9,4.90332551]
[1729672988385,3.47705,2588.4,2587.4,5.20018487]
[1729672988386,3.47781,2587.9,2587.4,5.20018487]
[1729672988547,3.47718,2588.3,2587.0,2.30002415]
[1729672988548,3.47812,2587.6,2587.1,0.8219]
[1729672988752,0.8201,2587.8,2587.1,0.8219]
[1729672988753,3.47852,2587.4,2587.1,0.8219]
[1729672989057,3.47827,2587.5,2587.1,0.8219]
[1729672989358,3.47825,2587.6,2587.1,0.8219]
[1729672989763,3.47825,2587.6,2587.1,4.30069]
[1729672990153,3.47825,2587.6,2587.1,4.730759]
[1729672990686,3.47825,2587.6,2587.1,4.80805827]
[1729672990840,3.47803,2587.7,2587.2,3.47865]
[1729672991041,3.47803,2587.7,2587.3,3.47851]
[1729672991253,3.47773,2587.9,2587.4,0.07729568]
[1729672991576,3.47755,2588.1,2587.4,3.5555897]
[1729672991883,0.762,2588.4,2587.2,3.47857]
[1729672991884,3.4781,2587.7,2587.2,3.47857]
[1729672992038,6.95617,2587.7,2587.2,3.47857]
[1729672992367,3.47733,2588.2,2587.1,0.8219]
[1729672992368,3.47849,2587.4,2587.1,0.8219]
[1729672992588,6.9565,2587.6,2587.1,0.8219]
[1729672992768,6.95589,2587.8,2587.2,3.47859]
[1729672992965,0.7722,2588.1,2587.2,0.777927]
[1729672993289,3.47833,2587.5,2587.1,0.8219]
[1729672993497,3.47846,2587.4,2587.1,0.8219]
[1729672993685,3.47833,2587.5,2587.1,0.8219]
[1729672994203,6.95516,2588.0,2587.1,0.8219]
[1729672994366,6.95516,2588.0,2586.8,0.7857]
[1729672994367,3.4786,2587.3,2586.8,0.7857]
[1729672994694,3.4786,2587.3,2586.1,1.23017095]
[1729672994695,3.47934,2586.7,2586.2,0.7857]
[1729672994902,3.47934,2586.7,2586.3,0.07731932]
[1729672995459,3.47923,2586.8,2586.3,3.55713932]
[1729672996297,3.47944,2586.7,2586.2,0.7857]
[1729672996598,3.47944,2586.7,2586.3,0.07732198]
[1729672996772,3.47944,2586.7,2586.3,0.81162118]
[1729672997157,3.47922,2586.8,2586.3,0.81162118]
[1729672997358,3.47912,2586.9,2586.4,0.55]
[1729672997594,3.47912,2586.9,2586.4,4.02966]
[1729673000009,6.95828,2586.9,2586.4,4.02966]
[1729673000175,3.47912,2586.9,2586.4,4.02966]
[1729673000377,3.47912,2586.9,2586.5,0.48028219]
[1729673000378,6.95828,2586.9,2586.5,0.48028219]
[1729673000881,3.47912,2586.9,2586.5,0.402966]
[1729673001090,3.4792,2586.8,2586.5,0.402966]
[1729673001487,3.47912,2586.9,2586.5,0.48028218]
[1729673001800,3.47912,2586.9,2586.5,0.402966]
[1729673002306,3.47887,2587.1,2586.7,0.81]
[1729673002523,6.95774,2587.1,2586.7,0.81]
[1729673002994,3.47909,2586.9,2586.7,0.81]
[1729673003201,3.4792,2586.8,2586.4,0.55]
[1729673003382,3.47957,2586.6,2586.2,0.81]
[1729673003571,6.95915,2586.6,2586.2,1.539018]
[1729673003905,3.47956,2586.6,2586.2,1.539018]
[1729673004069,3.47964,2586.5,2586.2,1.539018]
[1729673005180,3.47956,2586.6,2586.2,1.539018]
[1729673005505,6.95965,2586.4,2586.2,0.81]
[1729673005706,3.48028,2586.0,2585.8,0.7847]
[1729673005916,3.48016,2586.1,2585.8,0.7847]
[1729673006120,3.4801,2586.2,2585.8,0.7847]
[1729673006597,3.48014,2586.1,2585.8,0.7847]
[1729673007841,3.48016,2586.1,2585.8,0.7847]
[1729673008399,3.48016,2586.1,2585.8,1.559328]
[1729673008586,3.48,2586.3,2585.8,1.559328]
[1729673009289,3.48,2586.3,2585.8,5.039848]
[1729673010041,3.48,2586.3,2585.9,0.0773347]
[1729673010234,0.7966,2586.8,2586.0,0.55]
[1729673010435,3.47933,2586.7,2586.0,4.94497427]
[1729673010644,6.95876,2586.7,2586.2,0.798]
[1729673010846,6.95876,2586.7,2586.2,4.27799]
[1729673010847,3.47933,2586.7,2586.2,4.27799]
[1729673011330,3.47948,2586.6,2586.2,0.798]
[1729673011530,3.47948,2586.6,2586.3,0.43554266]
[1729673011832,3.47933,2586.7,2586.3,0.43554266]
[1729673012330,3.47953,2586.6,2586.3,0.43554266]
[1729673012489,3.47953,2586.6,2586.2,0.798]
[1729673012895,3.4796,2586.5,2586.2,0.798]
[1729673015994,3.47987,2586.3,2585.9,3.8152]
[1729673016201,3.47987,2586.3,2585.9,1.6222308]
[1729673016838,6.95982,2586.3,2585.9,1.6222308]
[1729673017143,3.47987,2586.3,2585.9,1.69956366]
[1729673017436,6.95987,2586.3,2585.9,1.69956366]
[1729673017617,3.47987,2586.3,2585.9,1.69956366]
[1729673017822,3.47987,2586.3,2586.0,0.59546617]
[1729673018801,3.47966,2586.5,2586.0,0.59546617]
[1729673018999,3.47966,2586.5,2586.1,0.07733129]
[1729673019195,3.47966,2586.5,2586.0,4.07573617]
[1729673019420,3.47974,2586.4,2586.0,0.59546617]
[1729673019628,3.47974,2586.4,2586.1,0.5698047]
[1729673020022,6.95935,2586.5,2586.1,0.5698047]
[1729673020429,3.47975,2586.4,2586.1,0.5698047]
[1729673023079,3.4795,2586.6,2586.1,0.5698047]
[1729673023374,3.4795,2586.6,2586.2,4.10731864]
[1729673023584,3.4795,2586.6,2586.3,0.46771233]
[1729673024179,3.47909,2586.9,2586.4,1.3049]
[1729673024351,3.47909,2586.9,2586.4,4.78456]
[1729673024560,3.479,2587.0,2586.4,4.78456]
[1729673024561,3.479,2587.0,2586.5,3.55689458]
[1729673024757,3.479,2587.0,2586.6,0.55]
[1729673025441,3.479,2587.0,2586.6,1.028448]
[1729673026562,3.479,2587.0,2586.6,1.10575957]
[1729673027576,3.0,2587.6,2586.6,1.10575957]
[1729673027889,3.4786,2587.3,2586.8,4.02913]
[1729673028179,3.47889,2587.1,2586.7,0.7542]
[1729673028481,3.47889,2587.1,2586.8,0.55]
[1729673028700,0.7885,2587.6,2587.0,3.47882]
[1729673028701,3.47815,2587.6,2587.0,3.47882]
[1729673028982,3.47833,2587.5,2587.2,0.752]
[1729673030353,3.47815,2587.6,2587.2,0.752]
[1729673030669,6.95636,2587.6,2587.2,0.752]
[1729673030869,3.47799,2587.7,2587.2,4.23064]
[1729673031075,3.47768,2588.0,2587.4,0.55]
[1729673031285,3.47768,2588.0,2587.5,0.85708424]
[1729673031471,3.4778,2587.9,2587.5,0.85708424]
[1729673031784,3.47772,2587.9,2587.5,0.85708424]
[1729673031986,3.47768,2588.0,2587.5,0.85708424]
[1729673032281,3.47774,2587.9,2587.6,0.48853642]